[Event "Early-Titled-Tuesday-Blitz-January-16-2024"]
[Site "Chess.com"]
[Date "2024.01.16"]
[Round "6"]
[White "j2806"]
[Black "GMJustin"]
[Result "0-1"]
[WhiteElo "2077"]
[BlackElo "2319"]
[TimeControl "180+1"]
[EndTime "9:11:48 PST"]
[Termination "GMJustin won by resignation"]

1. e4 {[%clk 0:02:59.4]} 1... e5 {[%clk 0:02:21.3]} 2. Nf3 {[%clk 0:02:57.4]}
2... Nc6 {[%clk 0:02:20.7]} 3. Bb5 {[%clk 0:02:53.1]} 3... a6 {[%clk 0:02:20.1]}
4. Ba4 {[%clk 0:02:53.2]} 4... Nf6 {[%clk 0:02:19.5]} 5. d3 {[%clk 0:02:52.6]}
5... b5 {[%clk 0:02:14.6]} 6. Bb3 {[%clk 0:02:51.1]} 6... h6 {[%clk 0:02:12.7]}
7. c3 {[%clk 0:02:51]} 7... d6 {[%clk 0:02:03.8]} 8. O-O {[%clk 0:02:43.3]} 8...
g5 {[%clk 0:02:01.7]} 9. Re1 {[%clk 0:02:39.3]} 9... Bg7 {[%clk 0:01:59.2]} 10.
d4 {[%clk 0:02:37.9]} 10... O-O {[%clk 0:01:57]} 11. Nbd2 {[%clk 0:02:29.5]}
11... g4 {[%clk 0:01:16.6]} 12. Nh4 {[%clk 0:01:58.2]} 12... exd4 {[%clk
0:01:09.2]} 13. cxd4 {[%clk 0:01:51.9]} 13... Nxd4 {[%clk 0:01:08.3]} 14. g3
{[%clk 0:01:44.1]} 14... c5 {[%clk 0:00:59.3]} 15. Nf1 {[%clk 0:01:38.9]} 15...
Be6 {[%clk 0:00:51.7]} 16. Bxe6 {[%clk 0:01:36]} 16... fxe6 {[%clk 0:00:51.1]}
17. Ne3 {[%clk 0:01:31.1]} 17... h5 {[%clk 0:00:48]} 18. Neg2 {[%clk 0:01:25.1]}
18... Qe8 {[%clk 0:00:42.7]} 19. Be3 {[%clk 0:01:19.4]} 19... Nd7 {[%clk
0:00:35]} 20. Rb1 {[%clk 0:01:11.8]} 20... Qf7 {[%clk 0:00:33.7]} 21. Nf4 {[%clk
0:01:09.3]} 21... Ne5 {[%clk 0:00:23.9]} 22. Kh1 {[%clk 0:00:51.9]} 22... Nc4
{[%clk 0:00:19.5]} 23. Qc1 {[%clk 0:00:32.3]} 23... Nxe3 {[%clk 0:00:16.4]} 24.
Rxe3 {[%clk 0:00:28.4]} 24... Bh6 {[%clk 0:00:15]} 25. Nhg2 {[%clk 0:00:20.5]}
25... e5 {[%clk 0:00:13.1]} 26. b4 {[%clk 0:00:19.8]} 26... exf4 {[%clk
0:00:11.7]} 27. Nxf4 {[%clk 0:00:19.8]} 27... Bxf4 {[%clk 0:00:11.6]} 28. gxf4
{[%clk 0:00:19.9]} 28... Qxf4 {[%clk 0:00:11.2]} 29. bxc5 {[%clk 0:00:19.5]}
29... Qxf2 {[%clk 0:00:09.1]} 30. cxd6 {[%clk 0:00:18.3]} 30... Nf3 {[%clk
0:00:07.6]} 31. Rxf3 {[%clk 0:00:15]} 31... Qxf3+ {[%clk 0:00:05.2]} 32. Kg1
{[%clk 0:00:13.4]} 32... Qf2+ {[%clk 0:00:05.3]} 33. Kh1 {[%clk 0:00:13.3]}
33... Qf3+ {[%clk 0:00:05.2]} 34. Kg1 {[%clk 0:00:13.8]} 34... Qf4 {[%clk
0:00:05.1]} 35. Qc2 {[%clk 0:00:12.3]} 35... Rac8 {[%clk 0:00:03.6]} 36. Qb3+
{[%clk 0:00:12.1]} 36... Qf7 {[%clk 0:00:03.4]} 37. Qe3 {[%clk 0:00:11.8]} 37...
Qf3 {[%clk 0:00:02.6]} 38. Qd4 {[%clk 0:00:11.4]} 38... Qf6 {[%clk 0:00:02]} 39.
Qd5+ {[%clk 0:00:11.5]} 39... Qf7 {[%clk 0:00:01.7]} 40. Qe5 {[%clk 0:00:11.5]}
40... Qg7 {[%clk 0:00:01.8]} 41. Qd5+ {[%clk 0:00:11.5]} 41... Kh8 {[%clk
0:00:01.9]} 42. Qxh5+ {[%clk 0:00:10.9]} 42... Qh7 {[%clk 0:00:01.6]} 43. Qe5+
{[%clk 0:00:11.1]} 43... Qg7 {[%clk 0:00:01.6]} 44. Qh5+ {[%clk 0:00:11.1]}
44... Kg8 {[%clk 0:00:02]} 45. Qd5+ {[%clk 0:00:11.1]} 45... Rf7 {[%clk
0:00:02.1]} 46. d7 {[%clk 0:00:11.5]} 46... Rd8 {[%clk 0:00:01.8]} 47. Qc6
{[%clk 0:00:11.2]} 47... Rdxd7 {[%clk 0:00:02.1]} 48. Qxa6 {[%clk 0:00:11.5]}
48... Kh7 {[%clk 0:00:02.4]} 49. Qxb5 {[%clk 0:00:11.5]} 49... Qd4+ {[%clk
0:00:02.7]} 50. Kh1 {[%clk 0:00:10.8]} 50... Qxe4+ {[%clk 0:00:03]} 51. Kg1
{[%clk 0:00:11.4]} 51... Qe3+ {[%clk 0:00:03]} 52. Kh1 {[%clk 0:00:11.5]} 52...
Qf3+ {[%clk 0:00:02.5]} 53. Kg1 {[%clk 0:00:12.1]} 53... Rd1+ {[%clk 0:00:02.4]}
54. Rxd1 {[%clk 0:00:12.2]} 54... Qxd1+ {[%clk 0:00:02.8]} 55. Kg2 {[%clk
0:00:12.9]} 55... Qf3+ {[%clk 0:00:03]} 56. Kg1 {[%clk 0:00:13.3]} 56... Qf2+
{[%clk 0:00:03.2]} 57. Kh1 {[%clk 0:00:12.8]} 57... Qf1+ {[%clk 0:00:03.6]} 58.
Qxf1 {[%clk 0:00:13.4]} 58... Rxf1+ {[%clk 0:00:03.4]} 59. Kg2 {[%clk
0:00:14.3]} 59... Ra1 {[%clk 0:00:04.1]} 60. Kg3 {[%clk 0:00:14.9]} 60... Rxa2
{[%clk 0:00:04]} 61. Kxg4 {[%clk 0:00:13.9]} 61... Rxh2 {[%clk 0:00:04.5]} 62.
Kg3 {[%clk 0:00:14.6]} 62... Ra2 {[%clk 0:00:04.6]} 0-1

[Event "Early-Titled-Tuesday-Blitz-January-16-2024"]
[Site "Chess.com"]
[Date "2024.01.16"]
[Round "6"]
[White "brm72"]
[Black "Balla_Tamas"]
[Result "1-0"]
[WhiteElo "2696"]
[BlackElo "2464"]
[TimeControl "180+1"]
[EndTime "9:11:51 PST"]
[Termination "brm72 won on time"]

1. Nf3 {[%clk 0:02:36]} 1... c5 {[%clk 0:02:51.1]} 2. c4 {[%clk 0:02:35.3]} 2...
Nc6 {[%clk 0:02:51.1]} 3. g3 {[%clk 0:02:34.9]} 3... g6 {[%clk 0:02:51.8]} 4.
Bg2 {[%clk 0:02:35.2]} 4... Bg7 {[%clk 0:02:52.5]} 5. O-O {[%clk 0:02:33.8]}
5... e6 {[%clk 0:02:53.1]} 6. e4 {[%clk 0:02:27.6]} 6... Nge7 {[%clk 0:02:51.8]}
7. Nc3 {[%clk 0:02:26.4]} 7... O-O {[%clk 0:02:50.6]} 8. d3 {[%clk 0:02:26.7]}
8... d6 {[%clk 0:02:50.4]} 9. Bd2 {[%clk 0:02:23.8]} 9... Nd4 {[%clk 0:02:44.7]}
10. a3 {[%clk 0:02:20]} 10... Nec6 {[%clk 0:02:42.2]} 11. Rb1 {[%clk 0:02:19.1]}
11... a5 {[%clk 0:02:41.5]} 12. Nxd4 {[%clk 0:02:11]} 12... Nxd4 {[%clk
0:02:39.9]} 13. Ne2 {[%clk 0:02:11.1]} 13... Nxe2+ {[%clk 0:02:30.7]} 14. Qxe2
{[%clk 0:02:12]} 14... b6 {[%clk 0:02:31.1]} 15. Bc3 {[%clk 0:02:12.2]} 15... e5
{[%clk 0:02:21]} 16. b4 {[%clk 0:02:07.2]} 16... axb4 {[%clk 0:02:20.9]} 17.
axb4 {[%clk 0:02:08.1]} 17... Be6 {[%clk 0:02:18.3]} 18. Ra1 {[%clk 0:02:04.2]}
18... Qd7 {[%clk 0:02:09.6]} 19. Qb2 {[%clk 0:02:01.9]} 19... Bh3 {[%clk
0:02:08.1]} 20. b5 {[%clk 0:02:00.4]} 20... Bxg2 {[%clk 0:02:04]} 21. Kxg2
{[%clk 0:02:01.3]} 21... Qb7 {[%clk 0:02:03.2]} 22. f4 {[%clk 0:01:55.7]} 22...
f5 {[%clk 0:01:58.6]} 23. fxe5 {[%clk 0:01:45.7]} 23... fxe4 {[%clk 0:01:56.6]}
24. exd6 {[%clk 0:01:44.6]} 24... exd3+ {[%clk 0:01:31.2]} 25. Kg1 {[%clk
0:01:40.2]} 25... Rxa1 {[%clk 0:01:28.1]} 26. Rxa1 {[%clk 0:01:19.1]} 26... Qf3
{[%clk 0:00:30.3]} 27. Bxg7 {[%clk 0:01:14.3]} 27... Qe3+ {[%clk 0:00:30.4]} 28.
Kg2 {[%clk 0:01:06.2]} 28... Qf3+ {[%clk 0:00:29.8]} 29. Kg1 {[%clk 0:01:01.6]}
29... Qe3+ {[%clk 0:00:30.3]} 30. Kh1 {[%clk 0:00:54.5]} 30... Qf3+ {[%clk
0:00:29.2]} 31. Qg2 {[%clk 0:00:50.4]} 31... Kxg7 {[%clk 0:00:18]} 32. Qxf3
{[%clk 0:00:38.1]} 32... Rxf3 {[%clk 0:00:18.5]} 33. d7 {[%clk 0:00:38.3]} 33...
Rf8 {[%clk 0:00:18.8]} 34. Rd1 {[%clk 0:00:38]} 34... Rd8 {[%clk 0:00:18.7]} 35.
Rxd3 {[%clk 0:00:38]} 35... Kf6 {[%clk 0:00:19.3]} 36. Rd6+ {[%clk 0:00:38.2]}
36... Ke7 {[%clk 0:00:18.5]} 37. Rxb6 {[%clk 0:00:38.3]} 37... Rxd7 {[%clk
0:00:18.9]} 38. Rc6 {[%clk 0:00:37.9]} 38... Rd2 {[%clk 0:00:13]} 39. Rxc5
{[%clk 0:00:37.1]} 39... Kd6 {[%clk 0:00:13.7]} 40. Rc6+ {[%clk 0:00:36.3]}
40... Kd7 {[%clk 0:00:13.6]} 41. Kg1 {[%clk 0:00:34.5]} 41... Rc2 {[%clk
0:00:14.1]} 42. h4 {[%clk 0:00:27.4]} 42... h6 {[%clk 0:00:12.2]} 43. Rxg6
{[%clk 0:00:26.4]} 43... Rxc4 {[%clk 0:00:12]} 44. Rxh6 {[%clk 0:00:26.5]} 44...
Rc2 {[%clk 0:00:12.3]} 45. b6 {[%clk 0:00:23.4]} 45... Rb2 {[%clk 0:00:12.3]}
46. Rf6 {[%clk 0:00:23.5]} 46... Ke7 {[%clk 0:00:12.7]} 47. Rf2 {[%clk
0:00:23.1]} 47... Rxb6 {[%clk 0:00:12.5]} 48. Kg2 {[%clk 0:00:23.6]} 48... Rb3
{[%clk 0:00:11.5]} 49. Kh3 {[%clk 0:00:23.3]} 49... Rb4 {[%clk 0:00:12.2]} 50.
Rf4 {[%clk 0:00:21.4]} 50... Rb1 {[%clk 0:00:12.1]} 51. Kg4 {[%clk 0:00:21.5]}
51... Rb5 {[%clk 0:00:12]} 52. h5 {[%clk 0:00:20.6]} 52... Rb6 {[%clk
0:00:12.1]} 53. Kh4 {[%clk 0:00:20.8]} 53... Re6 {[%clk 0:00:11.5]} 54. g4
{[%clk 0:00:20.7]} 54... Re1 {[%clk 0:00:11.3]} 55. Kg5 {[%clk 0:00:20.8]} 55...
Re5+ {[%clk 0:00:11.4]} 56. Rf5 {[%clk 0:00:20.3]} 56... Re6 {[%clk 0:00:12.1]}
57. Ra5 {[%clk 0:00:18.6]} 57... Kf7 {[%clk 0:00:12.4]} 58. Ra7+ {[%clk
0:00:18.3]} 58... Kg8 {[%clk 0:00:12.4]} 59. h6 {[%clk 0:00:18.1]} 59... Rc6
{[%clk 0:00:12.4]} 60. Kh5 {[%clk 0:00:17.6]} 60... Rc8 {[%clk 0:00:05.9]} 61.
g5 {[%clk 0:00:17.1]} 61... Rc5 {[%clk 0:00:05.4]} 62. Re7 {[%clk 0:00:15.5]}
62... Ra5 {[%clk 0:00:04.9]} 63. Re6 {[%clk 0:00:12.5]} 63... Kf7 {[%clk
0:00:02.8]} 64. Rf6+ {[%clk 0:00:12.7]} 64... Kg8 {[%clk 0:00:03]} 65. Kg6
{[%clk 0:00:12]} 65... Ra7 {[%clk 0:00:02.6]} 66. h7+ {[%clk 0:00:08.5]} 1-0

[Event "Early-Titled-Tuesday-Blitz-January-16-2024"]
[Site "Chess.com"]
[Date "2024.01.16"]
[Round "6"]
[White "BogdanDeac"]
[Black "Arifarsky"]
[Result "1-0"]
[WhiteElo "3020"]
[BlackElo "2719"]
[TimeControl "180+1"]
[EndTime "9:11:53 PST"]
[Termination "BogdanDeac won by resignation"]

1. d4 {[%clk 0:03:00.9]} 1... Nf6 {[%clk 0:02:58.3]} 2. Bf4 {[%clk 0:03:00.9]}
2... c5 {[%clk 0:02:56.7]} 3. d5 {[%clk 0:03:00.1]} 3... Qb6 {[%clk 0:02:56.8]}
4. Bc1 {[%clk 0:02:59.5]} 4... e6 {[%clk 0:02:54.5]} 5. Nc3 {[%clk 0:02:59.7]}
5... exd5 {[%clk 0:02:49.5]} 6. Nxd5 {[%clk 0:02:59.7]} 6... Nxd5 {[%clk
0:02:50.2]} 7. Qxd5 {[%clk 0:03:00]} 7... d6 {[%clk 0:02:50.9]} 8. Nh3 {[%clk
0:02:48.5]} 8... Be6 {[%clk 0:02:43.8]} 9. Qd1 {[%clk 0:02:48.1]} 9... Be7
{[%clk 0:02:23.9]} 10. Nf4 {[%clk 0:02:47]} 10... O-O {[%clk 0:02:21.6]} 11. g3
{[%clk 0:02:46.1]} 11... Nc6 {[%clk 0:02:18.8]} 12. Bg2 {[%clk 0:02:46.2]} 12...
Bf6 {[%clk 0:02:18]} 13. c3 {[%clk 0:02:41.8]} 13... Rad8 {[%clk 0:02:10.5]} 14.
O-O {[%clk 0:02:30.3]} 14... g6 {[%clk 0:02:06.8]} 15. Nd5 {[%clk 0:02:25.6]}
15... Bxd5 {[%clk 0:02:06.8]} 16. Qxd5 {[%clk 0:02:26.5]} 16... Rfe8 {[%clk
0:01:52.4]} 17. e4 {[%clk 0:02:17.6]} 17... Ne7 {[%clk 0:01:35.4]} 18. Qb3
{[%clk 0:02:15.4]} 18... Nc6 {[%clk 0:01:32.4]} 19. Rd1 {[%clk 0:02:11.5]} 19...
Qc7 {[%clk 0:01:29]} 20. Bf4 {[%clk 0:02:06.7]} 20... Ne5 {[%clk 0:01:29.1]} 21.
Rd5 {[%clk 0:01:55.3]} 21... a6 {[%clk 0:01:15.7]} 22. Rad1 {[%clk 0:01:53]}
22... b5 {[%clk 0:01:14.5]} 23. Qc2 {[%clk 0:01:52]} 23... Qe7 {[%clk
0:01:05.6]} 24. h3 {[%clk 0:01:45.4]} 24... Bg7 {[%clk 0:01:03.8]} 25. Qd2
{[%clk 0:01:39.2]} 25... Nc4 {[%clk 0:01:02.6]} 26. Qc1 {[%clk 0:01:39.1]} 26...
Be5 {[%clk 0:00:52.8]} 27. Bg5 {[%clk 0:01:23.3]} 27... Bf6 {[%clk 0:00:48.9]}
28. Bh6 {[%clk 0:01:15.3]} 28... Nb6 {[%clk 0:00:43.2]} 29. R5d3 {[%clk
0:01:14.3]} 29... Nc4 {[%clk 0:00:42.3]} 30. Qc2 {[%clk 0:00:52]} 30... Bg7
{[%clk 0:00:34.9]} 31. Bf4 {[%clk 0:00:35.3]} 31... Be5 {[%clk 0:00:30]} 32. Bc1
{[%clk 0:00:35.8]} 32... Bg7 {[%clk 0:00:29.4]} 33. a4 {[%clk 0:00:32.5]} 33...
Nb6 {[%clk 0:00:23.9]} 34. axb5 {[%clk 0:00:31.9]} 34... axb5 {[%clk 0:00:24.4]}
35. h4 {[%clk 0:00:28.8]} 35... h5 {[%clk 0:00:20.3]} 36. R3d2 {[%clk
0:00:05.9]} 36... Nc4 {[%clk 0:00:18.3]} 37. Rd5 {[%clk 0:00:04.3]} 37... Nb6
{[%clk 0:00:18.2]} 38. R5d2 {[%clk 0:00:02.7]} 38... Nc4 {[%clk 0:00:18.5]} 39.
Re2 {[%clk 0:00:03.1]} 39... Ne5 {[%clk 0:00:17.8]} 40. Bg5 {[%clk 0:00:02.6]}
40... Bf6 {[%clk 0:00:17.7]} 41. Bf4 {[%clk 0:00:03.1]} 41... Qe6 {[%clk
0:00:17.5]} 42. Red2 {[%clk 0:00:03.2]} 42... Nc4 {[%clk 0:00:16.6]} 43. Rd5
{[%clk 0:00:02.8]} 43... Nb6 {[%clk 0:00:16]} 44. Rxd6 {[%clk 0:00:02.8]} 44...
Qe7 {[%clk 0:00:06.7]} 45. Rxb6 {[%clk 0:00:03]} 45... Rc8 {[%clk 0:00:07.1]}
46. Rbd6 {[%clk 0:00:02.8]} 46... Be5 {[%clk 0:00:07]} 47. Rd7 {[%clk
0:00:03.3]} 47... Qe6 {[%clk 0:00:07.1]} 48. Bxe5 {[%clk 0:00:03.9]} 48... Qxe5
{[%clk 0:00:07.5]} 49. R1d5 {[%clk 0:00:04.8]} 49... Qe6 {[%clk 0:00:07.9]} 50.
Qd2 {[%clk 0:00:05.5]} 50... b4 {[%clk 0:00:08.1]} 51. Rd8 {[%clk 0:00:05.8]}
51... bxc3 {[%clk 0:00:07.9]} 52. bxc3 {[%clk 0:00:06.3]} 52... Kg7 {[%clk
0:00:08.1]} 53. Rxc8 {[%clk 0:00:06.5]} 53... Rxc8 {[%clk 0:00:08.5]} 54. Qf4
{[%clk 0:00:07.2]} 54... Re8 {[%clk 0:00:08.4]} 55. Qd6 {[%clk 0:00:07.2]} 55...
Qg4 {[%clk 0:00:08.5]} 56. Qf4 {[%clk 0:00:06.6]} 56... Qe6 {[%clk 0:00:08]} 57.
Rxc5 {[%clk 0:00:06.3]} 57... Qe7 {[%clk 0:00:07.5]} 58. Rd5 {[%clk 0:00:05.8]}
58... Rc8 {[%clk 0:00:07.5]} 59. Qe5+ {[%clk 0:00:05.8]} 59... Qxe5 {[%clk
0:00:07.7]} 60. Rxe5 {[%clk 0:00:06.7]} 60... Rxc3 {[%clk 0:00:08.6]} 61. Rd5
{[%clk 0:00:07.4]} 61... Rc1+ {[%clk 0:00:08.2]} 62. Bf1 {[%clk 0:00:07.8]}
62... Rc2 {[%clk 0:00:09.1]} 63. Kg2 {[%clk 0:00:08]} 63... Kf6 {[%clk
0:00:09.3]} 64. Bd3 {[%clk 0:00:08.5]} 64... Rd2 {[%clk 0:00:09.3]} 65. Kf3
{[%clk 0:00:06.8]} 65... Ke6 {[%clk 0:00:09.3]} 66. Ke3 {[%clk 0:00:07.2]} 1-0

[Event "Early-Titled-Tuesday-Blitz-January-16-2024"]
[Site "Chess.com"]
[Date "2024.01.16"]
[Round "6"]
[White "platy3"]
[Black "Konavets"]
[Result "1-0"]
[WhiteElo "2897"]
[BlackElo "3140"]
[TimeControl "180+1"]
[EndTime "9:11:55 PST"]
[Termination "platy3 won by resignation"]

1. e4 {[%clk 0:03:00.9]} 1... e5 {[%clk 0:03:00.3]} 2. Nf3 {[%clk 0:03:01.1]}
2... Nc6 {[%clk 0:03:01]} 3. Bc4 {[%clk 0:03:01.5]} 3... Nf6 {[%clk 0:03:00.9]}
4. d3 {[%clk 0:03:01.7]} 4... Bc5 {[%clk 0:02:59.4]} 5. O-O {[%clk 0:03:01.7]}
5... d6 {[%clk 0:02:59.8]} 6. a4 {[%clk 0:02:58.2]} 6... a6 {[%clk 0:03:00]} 7.
h3 {[%clk 0:02:58.4]} 7... h6 {[%clk 0:02:59.6]} 8. Be3 {[%clk 0:02:57.7]} 8...
g5 {[%clk 0:02:56.7]} 9. Nh2 {[%clk 0:02:30.8]} 9... Rg8 {[%clk 0:02:56.2]} 10.
Bxc5 {[%clk 0:02:01.9]} 10... dxc5 {[%clk 0:02:57.1]} 11. c3 {[%clk 0:01:30.5]}
11... h5 {[%clk 0:02:03.9]} 12. Nd2 {[%clk 0:01:29.8]} 12... h4 {[%clk
0:02:03.3]} 13. Ng4 {[%clk 0:01:06.4]} 13... Bxg4 {[%clk 0:01:37.4]} 14. hxg4
{[%clk 0:01:07.3]} 14... Qd7 {[%clk 0:01:37.9]} 15. Qf3 {[%clk 0:01:01.1]} 15...
Ke7 {[%clk 0:01:11.9]} 16. Qe3 {[%clk 0:00:47.4]} 16... Nxg4 {[%clk 0:01:08.8]}
17. Qxc5+ {[%clk 0:00:47.4]} 17... Qd6 {[%clk 0:01:09.4]} 18. Nb3 {[%clk
0:00:42.3]} 18... Qxc5 {[%clk 0:01:06.3]} 19. Nxc5 {[%clk 0:00:42.4]} 19... Na5
{[%clk 0:01:07.2]} 20. Bd5 {[%clk 0:00:33.3]} 20... c6 {[%clk 0:01:02.7]} 21.
Ba2 {[%clk 0:00:28]} 21... b6 {[%clk 0:01:03]} 22. b4 {[%clk 0:00:28.4]} 22...
bxc5 {[%clk 0:01:03.3]} 23. bxa5 {[%clk 0:00:28.9]} 23... Nf6 {[%clk 0:00:53.8]}
24. Rab1 {[%clk 0:00:28.6]} 24... Nd7 {[%clk 0:00:42.6]} 25. Bc4 {[%clk
0:00:27.8]} 25... Rgb8 {[%clk 0:00:40.8]} 26. Rfc1 {[%clk 0:00:24.5]} 26... f6
{[%clk 0:00:31.4]} 27. Kh2 {[%clk 0:00:24.1]} 27... g4 {[%clk 0:00:30.3]} 28. g3
{[%clk 0:00:23.1]} 28... Rh8 {[%clk 0:00:25.2]} 29. gxh4 {[%clk 0:00:22]} 29...
Rxh4+ {[%clk 0:00:24.6]} 30. Kg2 {[%clk 0:00:22.8]} 30... Rah8 {[%clk
0:00:20.5]} 31. Rh1 {[%clk 0:00:22.6]} 31... Rxh1 {[%clk 0:00:06.9]} 32. Rxh1
{[%clk 0:00:23.5]} 32... Rb8 {[%clk 0:00:07.3]} 33. Rh7+ {[%clk 0:00:14.8]}
33... Kd6 {[%clk 0:00:06.9]} 34. Rg7 {[%clk 0:00:10.5]} 34... Rb2 {[%clk
0:00:07]} 35. Bxa6 {[%clk 0:00:10.8]} 35... Ra2 {[%clk 0:00:05.1]} 36. Bc8
{[%clk 0:00:11]} 36... Nf8 {[%clk 0:00:05.5]} 37. Rg8 {[%clk 0:00:10]} 37... Ne6
{[%clk 0:00:02.9]} 38. Re8 {[%clk 0:00:06.6]} 38... Nf4+ {[%clk 0:00:03.4]} 39.
Kg3 {[%clk 0:00:06.5]} 39... Rxa4 {[%clk 0:00:04.3]} 40. a6 {[%clk 0:00:06.2]}
40... Kc7 {[%clk 0:00:04.4]} 41. Bb7 {[%clk 0:00:06.3]} 41... Nxd3 {[%clk
0:00:04]} 42. Kxg4 {[%clk 0:00:05.4]} 42... Nxf2+ {[%clk 0:00:04.2]} 43. Kf5
{[%clk 0:00:05.9]} 43... Nxe4 {[%clk 0:00:05.1]} 44. Rc8+ {[%clk 0:00:05.2]}
44... Kb6 {[%clk 0:00:05.3]} 45. Rxc6+ {[%clk 0:00:05.5]} 45... Ka7 {[%clk
0:00:05.3]} 46. Ke6 {[%clk 0:00:03.7]} 46... Nxc3 {[%clk 0:00:04.7]} 47. Kd6
{[%clk 0:00:02.7]} 47... Nb5+ {[%clk 0:00:04.7]} 48. Kxc5 {[%clk 0:00:03]} 48...
Nd4 {[%clk 0:00:04]} 49. Rc8 {[%clk 0:00:03.1]} 49... Nb3+ {[%clk 0:00:03.7]}
50. Kb5 {[%clk 0:00:03.4]} 50... Ra5+ {[%clk 0:00:04.2]} 51. Kb4 {[%clk
0:00:04.1]} 51... Rxa6 {[%clk 0:00:03.3]} 52. Bxa6 {[%clk 0:00:03.4]} 52... Nd4
{[%clk 0:00:02.7]} 53. Bc4 {[%clk 0:00:03.8]} 53... Kb6 {[%clk 0:00:03]} 54. Rf8
{[%clk 0:00:04]} 54... Nc6+ {[%clk 0:00:02.5]} 55. Kc3 {[%clk 0:00:04.6]} 55...
Kc5 {[%clk 0:00:03.4]} 56. Rxf6 {[%clk 0:00:04.6]} 56... Nd4 {[%clk 0:00:04.2]}
57. Bd3 {[%clk 0:00:04.7]} 57... Nc6 {[%clk 0:00:04.3]} 58. Be4 {[%clk
0:00:04.8]} 58... Nd4 {[%clk 0:00:04.8]} 59. Kd3 {[%clk 0:00:05.3]} 59... Nb5
{[%clk 0:00:04.9]} 60. Re6 {[%clk 0:00:04.3]} 60... Nd6 {[%clk 0:00:05.4]} 61.
Rxe5+ {[%clk 0:00:04.7]} 61... Kb6 {[%clk 0:00:06.3]} 62. Rd5 {[%clk 0:00:05]}
62... Nb5 {[%clk 0:00:06.4]} 63. Kc4 {[%clk 0:00:04.7]} 63... Nc7 {[%clk
0:00:06.3]} 64. Rd6+ {[%clk 0:00:04.7]} 64... Ka5 {[%clk 0:00:06.7]} 65. Rc6
{[%clk 0:00:04.1]} 65... Na6 {[%clk 0:00:07]} 66. Bd3 {[%clk 0:00:04.1]} 66...
Nb4 {[%clk 0:00:07.2]} 67. Rc5+ {[%clk 0:00:04.4]} 67... Ka4 {[%clk 0:00:07.9]}
68. Rc8 {[%clk 0:00:03.6]} 68... Na6 {[%clk 0:00:06]} 69. Ra8 {[%clk 0:00:03.7]}
69... Ka5 {[%clk 0:00:06.6]} 70. Kd5 {[%clk 0:00:03.7]} 1-0

[Event "Early-Titled-Tuesday-Blitz-January-16-2024"]
[Site "Chess.com"]
[Date "2024.01.16"]
[Round "6"]
[White "GrumbleBruno"]
[Black "SpongeBob_03"]
[Result "1-0"]
[WhiteElo "2461"]
[BlackElo "2208"]
[TimeControl "180+1"]
[EndTime "9:12:00 PST"]
[Termination "GrumbleBruno won on time"]

1. e4 {[%clk 0:01:20.5]} 1... c5 {[%clk 0:02:47.1]} 2. c3 {[%clk 0:01:20.3]}
2... d5 {[%clk 0:02:45.7]} 3. exd5 {[%clk 0:01:20.1]} 3... Qxd5 {[%clk
0:02:46.6]} 4. d4 {[%clk 0:01:20.5]} 4... Nf6 {[%clk 0:02:45.4]} 5. Nf3 {[%clk
0:01:20.7]} 5... e6 {[%clk 0:02:45.8]} 6. Bd3 {[%clk 0:01:19.6]} 6... Nc6 {[%clk
0:02:44.5]} 7. O-O {[%clk 0:01:19.6]} 7... cxd4 {[%clk 0:02:44.7]} 8. cxd4
{[%clk 0:01:19.5]} 8... a6 {[%clk 0:02:42.7]} 9. Nc3 {[%clk 0:01:19.6]} 9... Qd6
{[%clk 0:02:42.5]} 10. Qe2 {[%clk 0:01:19.7]} 10... Nb4 {[%clk 0:02:42]} 11. Bb1
{[%clk 0:01:18.8]} 11... Nbd5 {[%clk 0:02:38.6]} 12. Ne5 {[%clk 0:01:18.8]}
12... b5 {[%clk 0:02:35]} 13. Nxd5 {[%clk 0:01:09.3]} 13... Nxd5 {[%clk
0:02:33.3]} 14. a4 {[%clk 0:01:06.5]} 14... bxa4 {[%clk 0:02:27]} 15. Rxa4
{[%clk 0:01:00.2]} 15... Bb7 {[%clk 0:02:26.3]} 16. Bd3 {[%clk 0:00:55.1]} 16...
Nb6 {[%clk 0:02:21]} 17. Bxa6 {[%clk 0:00:39.3]} 17... Rxa6 {[%clk 0:01:41.9]}
18. Rxa6 {[%clk 0:00:38.4]} 18... Qd5 {[%clk 0:01:41.6]} 19. Nf3 {[%clk
0:00:34]} 19... Nc4 {[%clk 0:01:33.4]} 20. Ra7 {[%clk 0:00:25.7]} 20... Bd6
{[%clk 0:01:32.6]} 21. b4 {[%clk 0:00:24.6]} 21... Nb6 {[%clk 0:01:18.4]} 22.
Bd2 {[%clk 0:00:21.3]} 22... O-O {[%clk 0:01:16.3]} 23. Rc1 {[%clk 0:00:19.8]}
23... Bb8 {[%clk 0:01:06.2]} 24. Raa1 {[%clk 0:00:18.8]} 24... Qh5 {[%clk
0:01:05.6]} 25. h3 {[%clk 0:00:13.8]} 25... Nd5 {[%clk 0:01:05]} 26. Ra5 {[%clk
0:00:11.7]} 26... Qg6 {[%clk 0:01:02.6]} 27. g3 {[%clk 0:00:08]} 27... Nf4
{[%clk 0:00:45.1]} 28. Bxf4 {[%clk 0:00:07.2]} 28... Bxf4 {[%clk 0:00:45.7]} 29.
Ne5 {[%clk 0:00:07.4]} 29... Qh6 {[%clk 0:00:13.3]} 30. gxf4 {[%clk 0:00:05.9]}
30... Qxh3 {[%clk 0:00:13.5]} 31. d5 {[%clk 0:00:06]} 31... Bxd5 {[%clk
0:00:12]} 32. Rxd5 {[%clk 0:00:06]} 32... exd5 {[%clk 0:00:12.4]} 33. Qf3 {[%clk
0:00:06.3]} 33... Qe6 {[%clk 0:00:11.2]} 34. Rd1 {[%clk 0:00:06]} 34... Rd8
{[%clk 0:00:10.3]} 35. b5 {[%clk 0:00:06.3]} 35... d4 {[%clk 0:00:10.4]} 36. Nc6
{[%clk 0:00:06.5]} 36... Rc8 {[%clk 0:00:08.2]} 37. Rxd4 {[%clk 0:00:06.5]}
37... Qg6+ {[%clk 0:00:07.8]} 38. Qg3 {[%clk 0:00:06.4]} 38... Qb1+ {[%clk
0:00:08.2]} 39. Kg2 {[%clk 0:00:06.7]} 39... Qxb5 {[%clk 0:00:08.4]} 40. Ne7+
{[%clk 0:00:07.1]} 40... Kf8 {[%clk 0:00:08.2]} 41. Nxc8 {[%clk 0:00:07.4]}
41... Qb7+ {[%clk 0:00:08.8]} 42. Qf3 {[%clk 0:00:07.6]} 42... Qxc8 {[%clk
0:00:09]} 43. Qe3 {[%clk 0:00:06.6]} 43... Qg4+ {[%clk 0:00:08.4]} 44. Qg3
{[%clk 0:00:06.6]} 44... Qe6 {[%clk 0:00:08.4]} 45. Rd8+ {[%clk 0:00:04.2]}
45... Ke7 {[%clk 0:00:09]} 46. Rd1 {[%clk 0:00:04.6]} 46... Qc6+ {[%clk
0:00:05]} 47. Qf3 {[%clk 0:00:04.4]} 47... Qg6+ {[%clk 0:00:05]} 48. Kf1 {[%clk
0:00:04.8]} 48... Qa6+ {[%clk 0:00:05.1]} 49. Qe2+ {[%clk 0:00:05.1]} 49... Qe6
{[%clk 0:00:00.8]} 50. Qxe6+ {[%clk 0:00:04.5]} 50... Kxe6 {[%clk 0:00:01.7]}
51. Ke2 {[%clk 0:00:04.9]} 51... Kf5 {[%clk 0:00:02.4]} 52. Kf3 {[%clk
0:00:05.6]} 52... f6 {[%clk 0:00:02.1]} 53. Rd5+ {[%clk 0:00:06.1]} 53... Kg6
{[%clk 0:00:03]} 54. Rd7 {[%clk 0:00:06.3]} 54... h5 {[%clk 0:00:03.2]} 55. f5+
{[%clk 0:00:06]} 55... Kh6 {[%clk 0:00:02.8]} 56. Kf4 {[%clk 0:00:06.3]} 56...
h4 {[%clk 0:00:00.9]} 57. Kg4 {[%clk 0:00:06.4]} 57... h3 {[%clk 0:00:01.8]} 58.
Kxh3 {[%clk 0:00:06.8]} 58... Kg5 {[%clk 0:00:02.7]} 59. Rxg7+ {[%clk 0:00:07]}
59... Kxf5 {[%clk 0:00:03]} 60. Kg3 {[%clk 0:00:07.4]} 60... Ke5 {[%clk
0:00:00.3]} 61. Kf3 {[%clk 0:00:07.1]} 1-0